bitfinex/quotes_BTCUSD_20250530
["timestamp","ask_amount","ask_price","bid_price","bid_amount"]
[1748595731095,0.0093798,105300.0,105280.0,0.11838]
[1748595731311,0.00049015,105300.0,105280.0,0.12175423]
[1748595731524,0.00049015,105300.0,105280.0,0.08735649]
[1748595731750,0.00049015,105300.0,105280.0,0.120757]
[1748595731967,0.0093798,105300.0,105280.0,0.121757]
[1748595732196,0.02269015,105300.0,105280.0,0.04950057]
[1748595732442,0.03157988,105300.0,105280.0,0.05050057]
[1748595732660,0.02269015,105300.0,105280.0,0.05502689]
[1748595732901,0.02269015,105300.0,105280.0,0.05402689]
[1748595733587,0.00049015,105300.0,105280.0,0.05502689]
[1748595733809,0.02269015,105300.0,105280.0,0.05050057]
[1748595734039,0.02269015,105300.0,105280.0,0.05502676]
[1748595734507,0.04519015,105300.0,105280.0,0.05502676]
[1748595734722,0.04519015,105300.0,105280.0,0.05050044]
[1748595735596,0.04519015,105300.0,105280.0,0.14066044]
[1748595736920,0.02269015,105300.0,105280.0,0.14066044]
[1748595738301,0.02269015,105300.0,105280.0,0.14065783]
[1748595738779,0.02269015,105300.0,105280.0,0.14303207]
[1748595739232,0.00049015,105300.0,105280.0,0.12143207]
[1748595739463,0.00049015,105300.0,105290.0,0.05874085]
[1748595739679,0.00049015,105300.0,105290.0,0.15319263]
[1748595740592,0.00049015,105300.0,105290.0,0.15556647]
[1748595740816,0.00049015,105300.0,105290.0,0.15656647]
[1748595741251,0.00049015,105300.0,105290.0,0.15419263]
[1748595741961,0.00049015,105300.0,105290.0,0.49419263]
[1748595742182,0.00049015,105300.0,105290.0,0.56400291]
[1748595742398,0.00049015,105300.0,105290.0,0.57391023]
[1748595742847,0.00049015,105300.0,105290.0,0.58815953]
[1748595743293,0.00049015,105300.0,105290.0,0.98815953]
[1748595743705,0.00049015,105300.0,105290.0,0.92287118]
[1748595743965,0.00049015,105300.0,105290.0,0.37307638]
[1748595744183,0.04449015,105300.0,105290.0,0.02968294]
[1748595745570,0.0539861,105300.0,105290.0,0.02968294]
[1748595745836,0.04449015,105300.0,105290.0,0.02968294]
[1748595748135,0.02309015,105300.0,105290.0,0.02968294]
[1748595753109,0.04479015,105300.0,105290.0,0.02968294]
[1748595754634,0.25371674,105300.0,105290.0,0.001]
[1748595754847,0.58422034,105300.0,105290.0,0.001]
[1748595755977,0.33527429,105300.0,105290.0,0.001]
[1748595763752,0.14534023,105300.0,105290.0,0.001]
[1748595763989,0.08277494,105300.0,105290.0,0.001]
[1748595768002,0.05157845,105300.0,105290.0,0.001]
[1748595768242,0.00049015,105300.0,105290.0,0.0334]
[1748595769160,0.00998601,105300.0,105290.0,0.0175]
[1748595769385,0.00998601,105300.0,105290.0,0.03668102]
[1748595769600,0.00998601,105300.0,105290.0,0.0175]
[1748595770029,0.00049015,105300.0,105290.0,0.0175]
[1748595770485,0.00049015,105300.0,105290.0,0.0335]
[1748595771404,0.00049015,105300.0,105290.0,0.05041507]
[1748595773596,0.00049015,105300.0,105290.0,0.04804085]
[1748595773811,0.00049015,105300.0,105290.0,0.06718769]
[1748595775604,0.00049015,105300.0,105290.0,0.0695617]
[1748595777843,0.00049015,105300.0,105290.0,0.16061565]
[1748595778716,0.00049015,105300.0,105290.0,0.16400861]
[1748595779832,0.00049015,105300.0,105290.0,0.16400761]
[1748595782757,0.05006198,105320.0,105290.0,0.56400761]
[1748595783001,0.06580894,105320.0,105290.0,0.56400761]
[1748595783239,0.06580894,105320.0,105300.0,0.0167]
[1748595783469,0.05631434,105320.0,105300.0,0.0167]
[1748595783941,0.06580966,105320.0,105290.0,0.1612336]
[1748595784177,0.04488623,105310.0,105290.0,0.03707965]
[1748595784405,0.03539073,105310.0,105290.0,0.03368769]
[1748595784627,0.03539037,105310.0,105290.0,0.03368769]
[1748595785086,0.0167,105300.0,105290.0,0.03368769]
[1748595785308,0.0167,105300.0,105290.0,0.01914684]
[1748595785561,0.02619586,105300.0,105290.0,0.01914684]
[1748595785769,0.26971543,105300.0,105280.0,0.43343196]
[1748595785993,0.26971543,105300.0,105280.0,0.34339196]
[1748595785994,0.20894535,105290.0,105280.0,0.34339196]
[1748595786228,0.20894535,105290.0,105280.0,0.34]
[1748595786229,0.24064535,105290.0,105280.0,0.34]
[1748595786435,0.04119676,105290.0,105280.0,0.34]
[1748595786651,0.24064535,105290.0,105280.0,0.34]
[1748595787588,0.24064535,105290.0,105280.0,0.342]
[1748595787797,0.24064526,105290.0,105280.0,0.342]
[1748595788009,0.23114832,105290.0,105280.0,0.342]
[1748595788248,0.18995156,105290.0,105280.0,0.342]
[1748595788456,0.18995156,105290.0,105280.0,0.344]
[1748595788672,0.24932317,105300.0,105280.0,0.361933]
[1748595788673,0.24932299,105300.0,105280.0,0.361933]
[1748595788882,0.24932299,105300.0,105280.0,0.393433]
[1748595789313,0.24932299,105300.0,105280.0,0.39004085]
[1748595789524,0.24932299,105300.0,105280.0,0.391433]
[1748595789963,0.22462659,105300.0,105280.0,0.391433]
[1748595790189,0.18993451,105300.0,105280.0,0.393433]
[1748595790403,0.23980622,105310.0,105280.0,0.393433]
[1748595790620,0.23980622,105310.0,105290.0,0.01454085]
[1748595790860,0.24930172,105310.0,105290.0,0.03054085]
[1748595791722,0.2587974,105310.0,105290.0,0.03054085]
[1748595791949,0.24930172,105310.0,105290.0,0.03054085]
[1748595792161,0.18993352,105300.0,105290.0,0.01454085]
[1748595792843,0.19942947,105300.0,105290.0,0.01454085]
[1748595793058,0.18993352,105300.0,105290.0,0.01454085]
[1748595793272,0.25879785,105310.0,105290.0,0.01454085]
[1748595793486,0.24930217,105310.0,105290.0,0.01454085]
[1748595793702,0.25879794,105310.0,105290.0,0.01454085]
[1748595795057,0.23980658,105310.0,105290.0,0.03388272]
[1748595795289,0.24930226,105310.0,105290.0,0.02984085]
[1748595796241,0.25879803,105310.0,105290.0,0.02984085]
[1748595798663,0.25879803,105310.0,105290.0,0.04554085]
[1748595798886,0.04989046,105310.0,105290.0,0.04791497]
[1748595799841,0.04989046,105310.0,105290.0,0.0647707]
[1748595800057,0.05938587,105310.0,105290.0,0.0647707]
[1748595800688,0.25879772,105310.0,105290.0,0.01922985]
[1748595800904,0.03489217,105300.0,105290.0,0.01922985]
[1748595801124,0.05059199,105300.0,105280.0,0.45527498]
[1748595801345,0.0600883,105300.0,105280.0,0.34339471]
[1748595801556,0.05059199,105300.0,105280.0,0.34339471]
[1748595801764,0.06008821,105300.0,105280.0,0.34339471]
[1748595802710,0.22791986,105300.0,105280.0,0.35793556]
[1748595802952,0.0157,105290.0,105280.0,0.34339471]
[1748595803182,0.0157,105290.0,105280.0,0.34]
[1748595803422,0.0322,105290.0,105280.0,0.34340052]
[1748595803895,0.0322,105290.0,105280.0,0.34540052]
[1748595804140,0.0322,105290.0,105280.0,0.34740052]
[1748595804366,0.0322,105290.0,105280.0,0.34340052]
[1748595804582,0.0322,105290.0,105280.0,0.34540052]
[1748595805030,0.0322,105290.0,105280.0,0.34740052]
[1748595805698,0.04169676,105290.0,105280.0,0.34740052]
[1748595806205,0.06069082,105290.0,105280.0,0.00740052]
[1748595806449,0.0511937,105290.0,105280.0,0.004]
[1748595806941,0.05119379,105290.0,105280.0,0.004]
[1748595807189,0.0511937,105290.0,105280.0,0.004]
[1748595807659,0.20892877,105300.0,105280.0,0.004]
[1748595807660,0.05129307,105300.0,105280.0,0.004]
[1748595807886,0.00949694,105290.0,105280.0,0.004]
[1748595808788,0.00949694,105290.0,105280.0,0.002]
[1748595809039,0.00949694,105290.0,105280.0,0.004]
[1748595809294,0.15184297,105300.0,105280.0,0.002]
[1748595809558,0.0284883,105300.0,105280.0,0.0304]
[1748595809811,0.05059037,105310.0,105280.0,0.04017478]
[1748595810059,0.06008587,105310.0,105290.0,0.0304]
[1748595810297,0.06008587,105310.0,105280.0,0.04157478]
[1748595810298,0.06958164,105310.0,105280.0,0.04157478]
[1748595810534,0.06958164,105310.0,105280.0,0.02627478]
[1748595810771,0.06958155,105310.0,105290.0,0.031]
[1748595811024,0.00949586,105300.0,105290.0,0.031]
[1748595811538,0.01899181,105300.0,105280.0,0.03877478]
[1748595811790,0.01899181,105300.0,105280.0,0.04077478]
[1748595812022,0.0316,105310.0,105290.0,0.04554085]
[1748595812251,0.0284856,105310.0,105290.0,0.04554085]
[1748595812506,0.0379811,105310.0,105290.0,0.04554085]
[1748595813170,0.0543811,105310.0,105290.0,0.04554085]
[1748595813387,0.06387678,105310.0,105290.0,0.04554085]
[1748595813616,0.02848569,105310.0,105290.0,0.04554085]
[1748595814458,0.01899019,105310.0,105290.0,0.04554085]
[1748595814677,0.00949505,105310.0,105290.0,0.04554085]
[1748595814877,0.00949496,105310.0,105290.0,0.04554085]
[1748595815084,0.01899019,105310.0,105290.0,0.04554085]
[1748595815305,0.00949496,105310.0,105290.0,0.04554085]
[1748595815518,0.00949496,105310.0,105290.0,0.04894137]
[1748595815741,0.00949496,105310.0,105290.0,0.04894437]
[1748595815742,0.0189901,105310.0,105290.0,0.04894437]
[1748595815955,0.00949505,105310.0,105290.0,0.04894437]
[1748595816390,0.00949496,105310.0,105290.0,0.04894437]
[1748595816601,0.02848542,105310.0,105290.0,0.04894437]
[1748595816811,0.00949496,105310.0,105290.0,0.06748254]
[1748595817051,0.00949496,105310.0,105290.0,0.06985669]
[1748595817269,0.05073607,105320.0,105290.0,0.06985669]
[1748595817544,0.14179002,105320.0,105290.0,0.06985669]
[1748595817761,0.06023022,105320.0,105300.0,0.0328]
[1748595817968,0.06023013,105320.0,105300.0,0.0328]
[1748595818180,0.04124111,105320.0,105300.0,0.0328]
[1748595818395,0.06972473,105320.0,105300.0,0.0328]
[1748595818629,0.04124111,105320.0,105300.0,0.0328]
[1748595818860,0.06972428,105320.0,105300.0,0.0328]
[1748595819068,0.06022968,105320.0,105300.0,0.0328]
[1748595819278,0.06122968,105320.0,105300.0,0.0328]
[1748595819494,0.01644696,105320.0,105300.0,0.0328]
[1748595819711,0.01064102,105320.0,105300.0,0.0328]
[1748595820140,0.02013526,105320.0,105300.0,0.03517395]
[1748595820564,0.02013517,105320.0,105300.0,0.03517395]
[1748595820788,0.0306295,105320.0,105300.0,0.03517395]
[1748595821415,0.02113517,105320.0,105300.0,0.0449383]
[1748595821831,0.01164102,105320.0,105300.0,0.0449383]
[1748595822063,0.01164102,105320.0,105310.0,0.0319]
[1748595822064,0.00214696,105320.0,105310.0,0.0319]
[1748595822283,0.00214696,105320.0,105310.0,0.13986864]
[1748595822703,0.00214696,105320.0,105310.0,0.14327183]
[1748595823122,0.00114696,105320.0,105310.0,0.14327183]
[1748595823770,0.00114696,105320.0,105310.0,0.14326484]
[1748595824001,0.00114696,105320.0,105310.0,0.23322484]
[1748595824208,0.00114696,105320.0,105310.0,0.232851]
[1748595824416,0.00014696,105320.0,105310.0,0.232851]
[1748595825331,0.00014696,105320.0,105310.0,0.234851]
[1748595826439,0.00014696,105320.0,105310.0,0.2314548]
[1748595827944,0.00014696,105320.0,105310.0,0.6314548]
[1748595830646,0.00014696,105320.0,105310.0,0.9999448]
[1748595830788,0.00014696,105320.0,105310.0,0.5999448]
[1748595831221,0.00014696,105320.0,105310.0,0.9999448]
[1748595832318,0.00014696,105320.0,105310.0,0.9714548]
[1748595835703,0.00014696,105320.0,105310.0,0.9553548]
[1748595835906,0.04114102,105320.0,105310.0,0.35854085]
[1748595836117,0.03164696,105320.0,105310.0,0.004]
[1748595836324,0.03164696,105320.0,105310.0,0.344]
[1748595836522,0.04114111,105320.0,105310.0,0.344]
[1748595837151,0.00014696,105320.0,105310.0,0.344]
[1748595837913,0.00014696,105320.0,105310.0,0.35854085]
[1748595838111,0.00014696,105320.0,105310.0,0.37404085]
[1748595838314,0.00014696,105320.0,105310.0,0.38914085]
[1748595838776,0.00014696,105320.0,105310.0,0.4801948]
[1748595839304,0.00014696,105320.0,105310.0,0.48358239]
[1748595840111,0.00014696,105320.0,105310.0,0.88358239]
[1748595840318,0.00014696,105320.0,105310.0,0.88358462]
[1748595842035,0.00014696,105320.0,105310.0,0.55950462]
[1748595842481,0.00014696,105320.0,105310.0,0.94290462]
[1748595843188,0.00014696,105320.0,105310.0,0.54290462]
[1748595843647,0.00014696,105320.0,105310.0,0.45298462]
[1748595843877,0.00014696,105320.0,105310.0,0.4495948]
[1748595844362,0.03334696,105320.0,105310.0,0.4495948]
[1748595844810,0.00014696,105320.0,105310.0,0.4495948]
[1748595846120,0.02863022,105320.0,105310.0,0.35854085]
[1748595846351,0.02863022,105320.0,105310.0,0.344]
[1748595846352,0.05083553,105320.0,105310.0,0.344]
[1748595846586,0.04134111,105320.0,105310.0,0.344]
[1748595846836,0.05083544,105320.0,105310.0,0.344]
[1748595847522,0.06032995,105320.0,105310.0,0.344]
[1748595847942,0.05083544,105320.0,105310.0,0.344]
[1748595848210,0.06032995,105320.0,105310.0,0.344]
[1748595848421,0.05083544,105320.0,105310.0,0.344]
[1748595848637,0.00014696,105320.0,105310.0,0.344]
[1748595849288,0.00014696,105320.0,105310.0,0.34739345]
[1748595849948,0.00964102,105320.0,105310.0,0.34739345]
[1748595850391,0.00014696,105320.0,105310.0,0.34739345]
[1748595850602,0.00964111,105320.0,105310.0,0.34739345]
[1748595851253,0.00964102,105320.0,105310.0,0.34739621]
[1748595851710,0.00014696,105320.0,105310.0,0.34739621]
[1748595855489,0.00014696,105320.0,105310.0,0.34739723]
[1748595856830,0.01913535,105320.0,105310.0,0.34739723]
[1748595857053,0.05952968,105320.0,105310.0,0.34739723]
[1748595857310,0.05952968,105320.0,105310.0,0.00739723]
[1748595857535,0.06902428,105320.0,105310.0,0.00739723]
[1748595857760,0.05952968,105320.0,105310.0,0.00739723]
[1748595857982,0.05003526,105320.0,105310.0,0.00739723]
[1748595858429,0.05952977,105320.0,105310.0,0.00739723]
[1748595858634,0.05952968,105320.0,105310.0,0.00739723]
[1748595859059,0.06902419,105320.0,105310.0,0.004]
[1748595860320,0.0785196,105320.0,105310.0,0.004]
[1748595860521,0.06902473,105320.0,105310.0,0.004]
[1748595860725,0.0785196,105320.0,105310.0,0.004]
[1748595860941,0.26841696,105320.0,105310.0,0.004]
[1748595861156,0.05003634,105320.0,105310.0,0.004]
[1748595861367,0.24942866,105320.0,105310.0,0.004]
[1748595862689,0.05953121,105320.0,105310.0,0.004]
[1748595863365,0.05003589,105320.0,105310.0,0.004]
[1748595863603,0.05953067,105320.0,105310.0,0.004]
[1748595865667,0.02853067,105320.0,105310.0,0.004]
[1748595865876,0.03802554,105320.0,105310.0,0.004]
[1748595866079,0.21842866,105320.0,105310.0,0.004]
[1748595866288,0.01903634,105320.0,105310.0,0.004]
[1748595866785,0.20893379,105320.0,105310.0,0.004]
[1748595867003,0.01903634,105320.0,105310.0,0.004]
[1748595867724,0.01903589,105320.0,105310.0,0.004]
[1748595867944,0.03797741,105320.0,105310.0,0.004]
[1748595868406,0.01898839,105320.0,105310.0,0.004]
[1748595868627,0.0284829,105320.0,105310.0,0.004]
[1748595869072,0.01898839,105320.0,105310.0,0.0041]
[1748595869289,0.0284829,105320.0,105310.0,0.0041]
[1748595870643,0.03797759,105320.0,105310.0,0.0041]
[1748595871064,0.0379775,105320.0,105310.0,0.0041]
[1748595872461,0.33164069,105320.0,105310.0,0.0041]
[1748595872693,0.42156069,105320.0,105310.0,0.0041]
[1748595872930,0.23111107,105310.0,105300.0,0.0001]
[1748595873170,0.20896591,105280.0,105270.0,0.00792339]
[1748595873378,0.19948622,105270.0,105260.0,0.01929428]
[1748595873600,0.19948622,105270.0,105260.0,0.00339428]
[1748595873601,0.21848444,105270.0,105260.0,0.00339428]
[1748595873818,0.22798373,105270.0,105260.0,0.00339428]
[1748595874031,0.19950544,105260.0,105250.0,0.0327]
[1748595874243,0.19950517,105260.0,105240.0,0.48318543]
[1748595874481,0.20900482,105260.0,105250.0,0.01454085]
[1748595874700,0.21850465,105260.0,105250.0,0.00049015]
[1748595874915,0.22800457,105260.0,105250.0,0.00049015]
[1748595875413,0.22800457,105260.0,105250.0,0.00349015]
[1748595875414,0.31585976,105260.0,105250.0,0.00349015]
[1748595875632,0.33185976,105260.0,105250.0,0.00349015]
[1748595876307,0.42177976,105260.0,105250.0,0.00349015]
[1748595876760,0.42177976,105260.0,105250.0,0.00549015]
[1748595876979,0.42177976,105260.0,105250.0,0.00349015]
[1748595877197,0.42101576,105260.0,105250.0,0.00049015]
[1748595877410,0.42401576,105260.0,105250.0,0.00049015]
[1748595877622,0.42401576,105260.0,105250.0,0.00349015]
[1748595878118,0.76401576,105260.0,105250.0,0.00049015]
[1748595878596,0.76601576,105260.0,105250.0,0.00049015]
[1748595880711,0.20904533,105240.0,105230.0,0.0061]
[1748595880937,0.42175928,105240.0,105230.0,0.0061]
[1748595881382,0.76175928,105240.0,105230.0,0.0061]
[1748595881811,0.79028128,105240.0,105230.0,0.0061]
[1748595882676,0.79128128,105240.0,105230.0,0.0071]
[1748595885663,0.79028128,105240.0,105230.0,0.0071]
[1748595885886,0.79028128,105240.0,105230.0,0.0061]
[1748595887253,0.79128128,105240.0,105230.0,0.0061]
[1748595887943,0.79028128,105240.0,105230.0,0.0061]
[1748595888168,0.79228128,105240.0,105230.0,0.0061]
[1748595888679,0.79528128,105240.0,105230.0,0.0071]
[1748595889587,1.28318128,105240.0,105230.0,0.0071]
[1748595891504,1.57530128,105240.0,105230.0,0.0071]
[1748595892143,1.25152128,105240.0,105230.0,0.0071]
[1748595892356,1.54364128,105240.0,105230.0,0.0071]
[1748595892780,1.16152128,105240.0,105230.0,0.0071]
[1748595892992,0.73509928,105240.0,105230.0,0.0071]
[1748595893208,1.02721928,105240.0,105230.0,0.0071]
[1748595893434,1.02721928,105240.0,105230.0,0.0072]
[1748595893671,0.73509928,105240.0,105230.0,0.0072]
[1748595894536,0.73509928,105240.0,105220.0,0.0162]
[1748595894537,0.21856766,105230.0,105220.0,0.0162]
[1748595894781,0.22807047,105230.0,105220.0,0.0162]
[1748595895245,0.23757337,105230.0,105220.0,0.0162]
[1748595895459,0.22807047,105230.0,105220.0,0.0162]
[1748595895668,0.22807119,105230.0,105220.0,0.0162]
[1748595895867,0.21856829,105230.0,105220.0,0.0162]
[1748595896070,0.21956829,105230.0,105220.0,0.0162]
[1748595896295,0.21956829,105230.0,105220.0,0.0163]
[1748595896507,0.21006548,105230.0,105220.0,0.0163]
[1748595896716,0.22056829,105230.0,105220.0,0.0163]
[1748595897126,0.23007119,105230.0,105220.0,0.0163]
[1748595897563,0.23007128,105230.0,105220.0,0.0313]
[1748595897776,0.23007119,105230.0,105220.0,0.0313]
[1748595898442,0.23957418,105230.0,105220.0,0.0313]
[1748595898653,0.23957418,105230.0,105220.0,0.0163]
[1748595898890,0.23007173,105230.0,105220.0,0.0163]
[1748595899136,0.21106629,105230.0,105220.0,0.0163]
[1748595899383,0.31732024,105230.0,105220.0,0.0001]
[1748595901539,0.30212024,105230.0,105220.0,0.00892101]
[1748595901792,0.30212024,105230.0,105220.0,0.00892102]
[1748595902012,0.30212024,105230.0,105220.0,0.00892103]
[1748595902471,0.30212024,105230.0,105220.0,0.00892129]
[1748595902693,0.30212024,105230.0,105220.0,0.0001]
[1748595904201,0.64212024,105230.0,105220.0,0.0001]
[1748595907509,0.73208024,105230.0,105220.0,0.0001]
[1748595908447,0.68420024,105230.0,105220.0,0.0001]
[1748595908668,0.21106458,105230.0,105220.0,0.0312]
[1748595908894,0.2395731,105230.0,105220.0,0.0312]
[1748595909121,0.23007083,105230.0,105220.0,0.0312]
[1748595909581,0.02100517,105230.0,105220.0,0.0312]
[1748595909811,0.03050726,105230.0,105220.0,0.0312]
[1748595910042,0.02100463,105230.0,105220.0,0.0312]
[1748595910488,0.03050726,105230.0,105220.0,0.0312]
[1748595910710,0.02100463,105230.0,105220.0,0.0312]
[1748595910940,0.002,105230.0,105220.0,0.04071733]
[1748595911164,0.01150218,105230.0,105220.0,0.04071733]
[1748595911384,0.02100454,105230.0,105220.0,0.04621121]
[1748595911853,0.03050708,105230.0,105220.0,0.04071733]
[1748595912927,0.002,105230.0,105220.0,0.04071733]
[1748595913210,0.01150236,105230.0,105220.0,0.04071733]
[1748595913424,0.02100463,105230.0,105220.0,0.04071733]
[1748595913634,0.01150218,105230.0,105220.0,0.04071733]
[1748595913844,0.02100463,105230.0,105220.0,0.04071733]
[1748595914059,0.01150218,105230.0,105220.0,0.04071733]
[1748595914563,0.03050699,105230.0,105220.0,0.04621121]
[1748595914790,0.02100445,105230.0,105220.0,0.04621121]
[1748595915025,0.002,105230.0,105220.0,0.04621121]
[1748595915941,0.001,105230.0,105220.0,0.04621121]
[1748595916175,0.00950091,105250.0,105230.0,0.0311]
[1748595916404,0.01900155,105250.0,105240.0,0.0311]
[1748595916630,0.21852648,105250.0,105240.0,0.03659284]
[1748595917084,0.02850264,105250.0,105240.0,0.03659284]
[1748595917303,0.01900155,105250.0,105240.0,0.03659284]
[1748595917528,0.01900101,105250.0,105240.0,0.03659284]
[1748595917756,0.03800283,105250.0,105240.0,0.03659284]
[1748595917980,0.10944929,105260.0,105250.0,0.0163]
[1748595918207,0.10944866,105260.0,105250.0,0.0323]
[1748595918454,0.12844859,105260.0,105250.0,0.0323]
[1748595918680,0.1284485,105260.0,105250.0,0.0323]
[1748595918912,0.09044945,105260.0,105250.0,0.0323]
[1748595919139,0.00048945,105260.0,105250.0,0.04684085]
[1748595919372,0.00048945,105260.0,105250.0,0.1378948]
[1748595919592,0.00348945,105260.0,105250.0,0.14229145]
[1748595920074,0.00348945,105260.0,105250.0,0.1388948]
[1748595921031,0.00048945,105260.0,105250.0,0.1378948]
[1748595921261,0.00048945,105260.0,105250.0,0.1388948]
[1748595921716,0.00048945,105260.0,105250.0,0.14026958]
[1748595921950,0.00048945,105260.0,105250.0,0.48226958]
[1748595922179,0.00048945,105260.0,105250.0,0.4798948]
[1748595922413,0.00048945,105260.0,105250.0,0.50203487]
[1748595922652,0.00048945,105260.0,105250.0,0.49863822]
[1748595923327,0.00048945,105260.0,105250.0,0.89863822]
[1748595924002,0.04749038,105280.0,105260.0,0.36954085]
[1748595924003,0.03799172,105280.0,105260.0,0.36954085]
[1748595924241,0.03799172,105280.0,105270.0,0.0311]
[1748595924483,0.00949766,105280.0,105270.0,0.0311]
[1748595924721,0.01899541,105280.0,105270.0,0.0311]
[1748595925216,0.02849334,105280.0,105270.0,0.0311]
[1748595925676,0.01899451,105290.0,105270.0,0.0311]
[1748595925893,0.00949766,105280.0,105270.0,0.0311]
[1748595926167,0.02849343,105280.0,105270.0,0.0311]
[1748595926398,0.02949334,105280.0,105270.0,0.0311]
[1748595927476,0.02849136,105290.0,105280.0,0.0164]
[1748595927690,0.03798893,105290.0,105280.0,0.0164]
[1748595927915,0.03898893,105290.0,105280.0,0.0164]
[1748595928348,0.03798893,105290.0,105280.0,0.0164]
[1748595928560,0.21844364,105290.0,105280.0,0.0164]
[1748595928808,0.02199451,105290.0,105280.0,0.0164]
[1748595929022,0.21194607,105290.0,105280.0,0.0164]
[1748595929241,0.21494607,105290.0,105280.0,0.0174]
[1748595929695,0.02499397,105290.0,105280.0,0.0174]
[1748595929921,0.006,105290.0,105280.0,0.0336]
[1748595930343,0.01549676,105290.0,105280.0,0.04814085]
[1748595930796,0.0219937,105290.0,105280.0,0.04814085]
[1748595931029,0.0229937,105290.0,105280.0,0.04814085]
[1748595931270,0.01349676,105290.0,105280.0,0.04814085]
[1748595931717,0.0199937,105290.0,105280.0,0.04714085]
[1748595932133,0.0219937,105290.0,105280.0,0.04714085]
[1748595932618,0.04098821,105290.0,105280.0,0.04714085]
[1748595932833,0.0219937,105290.0,105280.0,0.04714085]
[1748595933055,0.03149082,105290.0,105280.0,0.04714085]
[1748595933722,0.0219937,105290.0,105280.0,0.04714085]
[1748595933990,0.003,105290.0,105280.0,0.04714085]
[1748595934220,0.003,105290.0,105280.0,0.04951518]
[1748595938239,0.003,105290.0,105280.0,0.13914761]
[1748595938481,0.003,105290.0,105280.0,0.54152194]
[1748595938685,0.003,105290.0,105280.0,0.53914761]
[1748595939181,0.002,105290.0,105280.0,0.53914761]
[1748595939396,0.04747633,105310.0,105290.0,0.0309]
[1748595939619,0.04747705,105310.0,105290.0,0.0309]
[1748595939835,0.03798137,105310.0,105300.0,0.00095263]
[1748595940065,0.02848578,105310.0,105300.0,0.00095263]
[1748595940276,0.02848569,105310.0,105300.0,0.01635263]
[1748595940536,0.01899028,105310.0,105300.0,0.01635263]
[1748595940750,0.02848569,105310.0,105300.0,0.01635263]
[1748595941192,0.03148569,105310.0,105300.0,0.01554696]
[1748595941407,0.03348569,105310.0,105300.0,0.01554696]
[1748595941827,0.04098128,105310.0,105300.0,0.01554696]
[1748595942252,0.04398119,105310.0,105300.0,0.01654696]
[1748595943333,0.01549505,105310.0,105300.0,0.01654696]
[1748595943552,0.02499037,105310.0,105300.0,0.01654696]
[1748595943970,0.01549505,105310.0,105300.0,0.01654696]
[1748595944240,0.006,105310.0,105300.0,0.01654696]
[1748595944459,0.006,105310.0,105300.0,0.03154696]
[1748595944676,0.006,105310.0,105300.0,0.03426106]
[1748595944895,0.01549505,105310.0,105300.0,0.03426106]
[1748595945117,0.006,105310.0,105300.0,0.03426106]
[1748595945344,0.01549514,105310.0,105300.0,0.03426106]
[1748595945592,0.006,105310.0,105300.0,0.03426106]
[1748595945806,0.01549505,105310.0,105300.0,0.03426106]
[1748595946648,0.006,105310.0,105300.0,0.03426106]
[1748595946881,0.01549505,105310.0,105300.0,0.03426106]
[1748595947771,0.03448578,105310.0,105300.0,0.00386106]
[1748595948003,0.05008578,105310.0,105300.0,0.00386106]
[1748595948254,0.05008578,105310.0,105300.0,0.00384123]
[1748595948467,0.05008569,105310.0,105300.0,0.00384123]
[1748595948679,0.05958119,105310.0,105300.0,0.00384123]
[1748595949786,0.2645973,105310.0,105300.0,0.00384123]
[1748595950005,0.24560666,105310.0,105300.0,0.00384123]
[1748595950664,0.04059073,105310.0,105300.0,0.00384123]
[1748595950871,0.0500865,105310.0,105300.0,0.00384123]
[1748595951306,0.0344865,105310.0,105300.0,0.00384123]
[1748595951729,0.0502865,105310.0,105300.0,0.00384123]
[1748595953550,0.24020198,105310.0,105300.0,0.00384123]
[1748595960546,0.22121125,105310.0,105300.0,0.00384123]
[1748595960790,0.22121125,105310.0,105300.0,0.00114696]
[1748595960791,0.3277652,105310.0,105300.0,0.00114696]
[1748595961531,0.04679559,105310.0,105300.0,0.00114696]
[1748595961756,0.02499019,105310.0,105300.0,0.00114696]
[1748595961985,0.3359011,105310.0,105300.0,0.00114696]
[1748595962219,0.34539687,105310.0,105300.0,0.00114696]
[1748595962474,0.36049687,105310.0,105300.0,0.00114696]
[1748595962709,0.24899739,105310.0,105300.0,0.00114696]
[1748595962949,0.04398191,105310.0,105300.0,0.00114696]
[1748595963427,0.04398191,105310.0,105300.0,0.00375377]
[1748595963716,0.03448614,105310.0,105300.0,0.00375377]
[1748595964696,0.22440162,105310.0,105300.0,0.00375377]
[1748595965478,0.03448614,105310.0,105300.0,0.00375377]
[1748595965730,0.04398191,105310.0,105300.0,0.00375377]
[1748595966228,0.23389739,105310.0,105300.0,0.00375377]
[1748595966453,0.22440216,105310.0,105300.0,0.00375377]
[1748595966705,0.02499037,105310.0,105300.0,0.00375377]
[1748595966952,0.04398146,105310.0,105300.0,0.00375377]
[1748595967959,0.04398137,105310.0,105300.0,0.00375377]
[1748595968205,0.03448578,105310.0,105300.0,0.00375377]
[1748595968448,0.03448578,105310.0,105300.0,0.01965377]
[1748595968449,0.05347687,105310.0,105300.0,0.01965377]
[1748595968925,0.03448623,105310.0,105300.0,0.01965377]
[1748595969418,0.04398191,105310.0,105300.0,0.01965377]
[1748595969672,0.23389739,105310.0,105300.0,0.01965377]
[1748595969931,0.23389739,105310.0,105300.0,0.00375377]
[1748595970447,0.04398191,105310.0,105300.0,0.00375377]
[1748595971179,0.05978191,105310.0,105300.0,0.00375377]
[1748595971917,0.24020207,105310.0,105300.0,0.00375377]
[1748595973555,0.05028659,105310.0,105300.0,0.00375377]
[1748595973814,0.02499091,105310.0,105300.0,0.00375377]
[1748595974308,0.03448659,105310.0,105300.0,0.00375377]
[1748595974798,0.03448659,105310.0,105300.0,0.01955377]
[1748595975047,0.02499037,105310.0,105300.0,0.03495377]
[1748595975284,0.03448578,105310.0,105300.0,0.03495377]
[1748595975530,0.01549514,105310.0,105300.0,0.03495377]
[1748595975805,0.006,105310.0,105300.0,0.03495377]
[1748595976063,0.006,105310.0,105300.0,0.14054857]
[1748595976303,0.006,105310.0,105300.0,0.49084362]
[1748595976526,0.006,105310.0,105300.0,0.55026871]
[1748595976994,0.003,105310.0,105300.0,0.55026871]
[1748595977224,0.003,105310.0,105300.0,0.95026871]
[1748595977504,0.02848038,105330.0,105320.0,0.0158]
[1748595977756,0.02848029,105330.0,105320.0,0.0158]
[1748595977984,0.2278535,105330.0,105320.0,0.0158]
[1748595978210,0.06207056,105330.0,105310.0,0.0316]
[1748595978455,0.2519508,105330.0,105310.0,0.10605395]
[1748595978682,0.00949406,105320.0,105310.0,0.1205948]
[1748595978978,0.01898821,105320.0,105310.0,0.1205948]
[1748595979422,0.00949406,105320.0,105310.0,0.1205948]